[Event "Titled Tuesday Blitz May 9 Late 2023"]
[White "KorolDimitriy75"]
[Black "Sowa, Ryan"]
[BlackFideId "30901693"]
[WhiteElo "2462"]
[BlackElo "2635"]
[Result "0-1"]
[Round "09"]
[TimeControl "180+2"]
[Date "2023.05.09"]
[WhiteClock "0:00:00"]
[BlackClock "0:00:24"]

1. d4 {[%clk 0:03:00]}  Nh6 {[%clk 0:02:54]} 2. c4 {[%clk 0:03:00]}  g6 {[%clk 0:02:54]} 3. Nc3 {[%clk 0:03:00]}  Bg7 {[%clk 0:02:55]} 4. e4 {[%clk 0:03:00]}  d6 {[%clk 0:02:55]} 5. Nf3 {[%clk 0:02:56]}  O-O {[%clk 0:02:56]} 6. Be2 {[%clk 0:02:54]}  f6 {[%clk 0:02:55]} 7. O-O {[%clk 0:02:52]}  e5 {[%clk 0:02:54]} 8. h3 {[%clk 0:02:48]}  Nc6 {[%clk 0:02:54]} 9. Be3 {[%clk 0:02:33]}  Nf7 {[%clk 0:02:49]} 10. d5 {[%clk 0:02:09]}  Ne7 {[%clk 0:02:46]} 11. Nd2 {[%clk 0:02:09]}  f5 {[%clk 0:02:45]} 12. f3 {[%clk 0:02:09]}  f4 {[%clk 0:02:45]} 13. Bf2 {[%clk 0:02:09]}  g5 {[%clk 0:02:46]} 14. c5 {[%clk 0:02:09]}  h5 {[%clk 0:02:41]} 15. Qc2 {[%clk 0:02:07]}  g4 {[%clk 0:02:25]} 16. hxg4 {[%clk 0:01:58]}  hxg4 {[%clk 0:02:26]} 17. fxg4 {[%clk 0:01:58]}  Ng6 {[%clk 0:01:27]} 18. cxd6 {[%clk 0:01:45]}  Nxd6 {[%clk 0:01:25]} 19. Rac1 {[%clk 0:00:46]}  Qg5 {[%clk 0:01:20]} 20. Qd1 {[%clk 0:00:19]}  Rf7 {[%clk 0:00:51]} 21. Bf3 {[%clk 0:00:17]}  Bf8 {[%clk 0:00:49]} 22. a4 {[%clk 0:00:17]}  Rh7 {[%clk 0:00:48]} 23. Re1 {[%clk 0:00:15]}  b6 {[%clk 0:00:43]} 24. Nb5 {[%clk 0:00:14]}  Ba6 {[%clk 0:00:35]} 25. Qb3 {[%clk 0:00:11]}  Nh4 {[%clk 0:00:27]} 26. Nxc7 {[%clk 0:00:00]}  Nxf3+ {[%clk 0:00:24]} 0-1


[Site "https://www.chess.com"]

[Event "Titled Tuesday Blitz May 9 Late 2023"]
[White "Ibadov, Dashgyn"]
[Black "Mikhalsky, Vladimir"]
[WhiteFideId "24107514"]
[BlackFideId "14144352"]
[WhiteElo "2208"]
[BlackElo "2236"]
[Result "0-1"]
[Round "09"]
[TimeControl "180+2"]
[Date "2023.05.09"]
[WhiteClock "0:00:00"]
[BlackClock "0:00:16"]

1. e4 {[%clk 0:03:00]}  g6 {[%clk 0:02:59]} 2. d4 {[%clk 0:03:00]}  Bg7 {[%clk 0:02:59]} 3. Nc3 {[%clk 0:02:59]}  d6 {[%clk 0:03:00]} 4. Be3 {[%clk 0:02:59]}  a6 {[%clk 0:02:59]} 5. h4 {[%clk 0:02:59]}  h5 {[%clk 0:02:57]} 6. Nh3 {[%clk 0:02:57]}  Bxh3 {[%clk 0:02:56]} 7. Rxh3 {[%clk 0:02:50]}  Nf6 {[%clk 0:02:55]} 8. f3 {[%clk 0:02:49]}  b5 {[%clk 0:02:54]} 9. Qd2 {[%clk 0:02:47]}  b4 {[%clk 0:02:52]} 10. Ne2 {[%clk 0:02:45]}  a5 {[%clk 0:02:51]} 11. Nf4 {[%clk 0:02:43]}  O-O {[%clk 0:02:41]} 12. Bc4 {[%clk 0:02:42]}  Kh7 {[%clk 0:02:27]} 13. O-O-O {[%clk 0:02:41]}  Nbd7 {[%clk 0:02:24]} 14. Rhh1 {[%clk 0:02:30]}  Nb6 {[%clk 0:02:23]} 15. Bd3 {[%clk 0:02:31]}  c5 {[%clk 0:02:13]} 16. dxc5 {[%clk 0:02:27]}  dxc5 {[%clk 0:02:13]} 17. e5 {[%clk 0:01:56]}  Nfd5 {[%clk 0:01:59]} 18. Nxd5 {[%clk 0:01:55]}  Qxd5 {[%clk 0:01:44]} 19. Bxg6+ {[%clk 0:01:55]}  Kxg6 {[%clk 0:01:33]} 20. Qxd5 {[%clk 0:01:56]}  Nxd5 {[%clk 0:01:33]} 21. Rxd5 {[%clk 0:01:57]}  c4 {[%clk 0:01:33]} 22. g4 {[%clk 0:01:45]}  e6 {[%clk 0:01:31]} 23. Rd4 {[%clk 0:01:30]}  b3 {[%clk 0:01:26]} 24. axb3 {[%clk 0:01:26]}  cxb3 {[%clk 0:01:26]} 25. cxb3 {[%clk 0:01:26]}  Bxe5 {[%clk 0:01:24]} 26. Re4 {[%clk 0:01:23]}  Bf6 {[%clk 0:01:22]} 27. Rg1 {[%clk 0:01:17]}  Rfc8+ {[%clk 0:01:13]} 28. Kb1 {[%clk 0:01:16]}  Rab8 {[%clk 0:01:09]} 29. gxh5+ {[%clk 0:01:02]}  Kxh5 {[%clk 0:01:09]} 30. Rf4 {[%clk 0:01:01]}  Rxb3 {[%clk 0:00:50]} 31. Rxf6 {[%clk 0:00:59]}  Rxe3 {[%clk 0:00:50]} 32. Rxf7 {[%clk 0:00:57]}  Rh8 {[%clk 0:00:47]} 33. Rg5+ {[%clk 0:00:37]}  Kxh4 {[%clk 0:00:46]} 34. Rxa5 {[%clk 0:00:21]}  Kg3 {[%clk 0:00:45]} 35. Rg5+ {[%clk 0:00:17]}  Kf2 {[%clk 0:00:44]} 36. f4 {[%clk 0:00:10]}  Rb8 {[%clk 0:00:42]} 37. f5 {[%clk 0:00:10]}  e5 {[%clk 0:00:42]} 38. Rh5 {[%clk 0:00:05]}  Kg3 {[%clk 0:00:37]} 39. Rg7+ {[%clk 0:00:02]}  Kf4 {[%clk 0:00:37]} 40. Rg2 {[%clk 0:00:02]}  e4 {[%clk 0:00:20]} 41. f6 {[%clk 0:00:03]}  Rf3 {[%clk 0:00:19]} 42. f7 {[%clk 0:00:03]}  Ke3 {[%clk 0:00:18]} 43. Rh7 {[%clk 0:00:02]}  Rf8 {[%clk 0:00:17]} 44. Rgg7 {[%clk 0:00:01]}  Ke2 {[%clk 0:00:16]} 45. Rh2+ {[%clk 0:00:02]}  Rf2 {[%clk 0:00:16]} 46. Rxf2+ {[%clk 0:00:02]}  Kxf2 {[%clk 0:00:16]} 47. Kc2 {[%clk 0:00:00]}  e3 {[%clk 0:00:16]} 0-1


[Site "https://www.chess.com"]

[Event "Titled Tuesday Blitz May 9 Late 2023"]
[White "marik_spb"]
[Black "Nikologorskiy, Konstantin"]
[BlackFideId "24111708"]
[WhiteElo "2455"]
[BlackElo "2273"]
[Result "0-1"]
[Round "09"]
[TimeControl "180+2"]
[Date "2023.05.09"]
[WhiteClock "0:00:00"]
[BlackClock "0:01:37"]

1. d4 {[%clk 0:03:00]}  Nf6 {[%clk 0:02:53]} 2. c4 {[%clk 0:03:00]}  e6 {[%clk 0:02:54]} 3. Nf3 {[%clk 0:02:59]}  Bb4+ {[%clk 0:02:54]} 4. Bd2 {[%clk 0:02:59]}  c5 {[%clk 0:02:54]} 5. g3 {[%clk 0:02:59]}  b6 {[%clk 0:02:53]} 6. Bg2 {[%clk 0:02:59]}  Bb7 {[%clk 0:02:54]} 7. O-O {[%clk 0:02:59]}  O-O {[%clk 0:02:53]} 8. Bxb4 {[%clk 0:02:45]}  cxb4 {[%clk 0:02:54]} 9. a3 {[%clk 0:02:44]}  bxa3 {[%clk 0:02:53]} 10. Rxa3 {[%clk 0:02:43]}  a5 {[%clk 0:02:54]} 11. Nbd2 {[%clk 0:02:39]}  d6 {[%clk 0:02:53]} 12. Qc2 {[%clk 0:02:39]}  Nbd7 {[%clk 0:02:53]} 13. e4 {[%clk 0:02:33]}  e5 {[%clk 0:02:53]} 14. Re1 {[%clk 0:01:59]}  Rc8 {[%clk 0:02:52]} 15. Rc3 {[%clk 0:01:39]}  Qe7 {[%clk 0:02:49]} 16. Bh3 {[%clk 0:01:35]}  Rfd8 {[%clk 0:02:47]} 17. d5 {[%clk 0:01:27]}  Ba6 {[%clk 0:02:44]} 18. Nh4 {[%clk 0:01:22]}  g6 {[%clk 0:02:44]} 19. Qd1 {[%clk 0:01:15]}  b5 {[%clk 0:02:39]} 20. cxb5 {[%clk 0:01:14]}  Rxc3 {[%clk 0:02:40]} 21. bxc3 {[%clk 0:01:14]}  Bxb5 {[%clk 0:02:41]} 22. c4 {[%clk 0:01:13]}  Ba6 {[%clk 0:02:41]} 23. Qa4 {[%clk 0:01:13]}  Nb6 {[%clk 0:02:37]} 24. Qxa5 {[%clk 0:01:10]}  Nxc4 {[%clk 0:02:37]} 25. Qxa6 {[%clk 0:01:05]}  Nxd2 {[%clk 0:02:38]} 26. Qd3 {[%clk 0:01:05]}  Ndxe4 {[%clk 0:02:32]} 27. Rxe4 {[%clk 0:01:01]}  Nxe4 {[%clk 0:02:33]} 28. Qxe4 {[%clk 0:01:01]}  Rb8 {[%clk 0:02:33]} 29. Bf1 {[%clk 0:00:44]}  Rb2 {[%clk 0:02:30]} 30. Nf3 {[%clk 0:00:39]}  Qa7 {[%clk 0:02:28]} 31. Qe3 {[%clk 0:00:36]}  Qa5 {[%clk 0:02:23]} 32. Bc4 {[%clk 0:00:23]}  Qb4 {[%clk 0:02:16]} 33. Bd3 {[%clk 0:00:17]}  Qc3 {[%clk 0:02:13]} 34. Bf1 {[%clk 0:00:13]}  Qa5 {[%clk 0:02:03]} 35. Ng5 {[%clk 0:00:11]}  Qxd5 {[%clk 0:01:59]} 36. Ne4 {[%clk 0:00:11]}  Kg7 {[%clk 0:01:55]} 37. Qf3 {[%clk 0:00:08]}  f5 {[%clk 0:01:54]} 38. Qc3 {[%clk 0:00:04]}  Rb7 {[%clk 0:01:51]} 39. Ng5 {[%clk 0:00:03]}  h6 {[%clk 0:01:47]} 40. Nf3 {[%clk 0:00:01]}  Kf6 {[%clk 0:01:40]} 41. Bc4 {[%clk 0:00:00]}  Qc5 {[%clk 0:01:37]} 0-1


[Site "https://www.chess.com"]

[Event "Titled Tuesday Blitz May 9 Late 2023"]
[White "Koutsin"]
[Black "brm72"]
[WhiteElo "2434"]
[BlackElo "2537"]
[Result "1-0"]
[Round "09"]
[TimeControl "180+2"]
[Date "2023.05.09"]
[WhiteClock "0:00:20"]
[BlackClock "0:00:00"]

1. d4 {[%clk 0:03:00]}  Nf6 {[%clk 0:02:53]} 2. c4 {[%clk 0:03:01]}  g6 {[%clk 0:02:53]} 3. Nc3 {[%clk 0:03:01]}  d5 {[%clk 0:02:54]} 4. Nf3 {[%clk 0:03:00]}  Bg7 {[%clk 0:02:54]} 5. e3 {[%clk 0:03:01]}  c5 {[%clk 0:02:46]} 6. dxc5 {[%clk 0:03:00]}  Qa5 {[%clk 0:02:45]} 7. Bd2 {[%clk 0:02:59]}  dxc4 {[%clk 0:02:42]} 8. Bxc4 {[%clk 0:02:54]}  Qxc5 {[%clk 0:02:41]} 9. Qe2 {[%clk 0:02:49]}  O-O {[%clk 0:02:38]} 10. O-O {[%clk 0:02:45]}  Nc6 {[%clk 0:02:37]} 11. Rac1 {[%clk 0:02:41]}  Bg4 {[%clk 0:02:28]} 12. Bb3 {[%clk 0:02:34]}  Ne5 {[%clk 0:01:56]} 13. Nd5 {[%clk 0:02:27]}  Qd6 {[%clk 0:01:22]} 14. Bb4 {[%clk 0:02:25]}  Bxf3 {[%clk 0:01:03]} 15. gxf3 {[%clk 0:02:21]}  Qd7 {[%clk 0:01:03]} 16. Nxe7+ {[%clk 0:02:13]}  Kh8 {[%clk 0:01:02]} 17. f4 {[%clk 0:01:53]}  Neg4 {[%clk 0:00:54]} 18. Rfd1 {[%clk 0:01:42]}  Qe8 {[%clk 0:00:51]} 19. Nd5 {[%clk 0:01:17]}  Nxd5 {[%clk 0:00:40]} 20. Bxd5 {[%clk 0:01:16]}  h5 {[%clk 0:00:34]} 21. Bxf8 {[%clk 0:01:14]}  Qxf8 {[%clk 0:00:35]} 22. Rc7 {[%clk 0:01:06]}  Nh6 {[%clk 0:00:25]} 23. Bxb7 {[%clk 0:01:00]}  Rb8 {[%clk 0:00:23]} 24. Rdd7 {[%clk 0:00:59]}  a5 {[%clk 0:00:18]} 25. a3 {[%clk 0:00:57]}  Qe8 {[%clk 0:00:17]} 26. Qc4 {[%clk 0:00:48]}  Bxb2 {[%clk 0:00:12]} 27. a4 {[%clk 0:00:47]}  Bg7 {[%clk 0:00:11]} 28. Rc8 {[%clk 0:00:46]}  Rxc8 {[%clk 0:00:09]} 29. Qxc8 {[%clk 0:00:46]}  Qxc8 {[%clk 0:00:10]} 30. Bxc8 {[%clk 0:00:47]}  Bc3 {[%clk 0:00:09]} 31. Rb7 {[%clk 0:00:42]}  Kg7 {[%clk 0:00:09]} 32. Kg2 {[%clk 0:00:42]}  Kf8 {[%clk 0:00:08]} 33. h3 {[%clk 0:00:41]}  Ng8 {[%clk 0:00:08]} 34. Rc7 {[%clk 0:00:39]}  Bb4 {[%clk 0:00:07]} 35. Ba6 {[%clk 0:00:38]}  Ne7 {[%clk 0:00:07]} 36. Bc4 {[%clk 0:00:38]}  f6 {[%clk 0:00:07]} 37. Ra7 {[%clk 0:00:36]}  Bc3 {[%clk 0:00:07]} 38. Kf3 {[%clk 0:00:32]}  Nf5 {[%clk 0:00:07]} 39. Rc7 {[%clk 0:00:26]}  Nd6 {[%clk 0:00:03]} 40. Be6 {[%clk 0:00:21]}  Ke8 {[%clk 0:00:00]} 41. Rxc3 {[%clk 0:00:20]} 1-0


[Site "https://www.chess.com"]

[Event "Titled Tuesday Blitz May 9 Late 2023"]
[White "Haszon, David"]
[Black "Gasparyan, David"]
[WhiteFideId "733610"]
[BlackFideId "13311980"]
[WhiteElo "2210"]
[BlackElo "2415"]
[Result "1-0"]
[Round "09"]
[TimeControl "180+2"]
[Date "2023.05.09"]
[WhiteClock "0:00:15"]
[BlackClock "0:00:07"]

1. e4 {[%clk 0:03:00]}  e5 {[%clk 0:02:55]} 2. Nc3 {[%clk 0:02:50]}  Nf6 {[%clk 0:02:47]} 3. f4 {[%clk 0:02:48]}  exf4 {[%clk 0:02:47]} 4. e5 {[%clk 0:02:47]}  Qe7 {[%clk 0:02:47]} 5. Qe2 {[%clk 0:02:46]}  f3 {[%clk 0:02:31]} 6. Nxf3 {[%clk 0:02:44]}  Ng4 {[%clk 0:02:28]} 7. d4 {[%clk 0:02:35]}  c6 {[%clk 0:02:08]} 8. h3 {[%clk 0:02:31]}  Nh6 {[%clk 0:02:06]} 9. Ne4 {[%clk 0:02:13]}  Nf5 {[%clk 0:01:18]} 10. g4 {[%clk 0:02:00]}  Nh4 {[%clk 0:01:17]} 11. Nd6+ {[%clk 0:01:44]}  Kd8 {[%clk 0:01:15]} 12. Bg5 {[%clk 0:01:12]}  Nxf3+ {[%clk 0:01:11]} 13. Qxf3 {[%clk 0:01:12]}  f6 {[%clk 0:01:11]} 14. Be3 {[%clk 0:01:00]}  Kc7 {[%clk 0:00:36]} 15. O-O-O {[%clk 0:00:56]}  g5 {[%clk 0:00:25]} 16. Bc4 {[%clk 0:00:50]}  fxe5 {[%clk 0:00:18]} 17. Nf7 {[%clk 0:00:47]}  Rg8 {[%clk 0:00:07]} 18. Nxe5 {[%clk 0:00:47]}  d5 {[%clk 0:00:06]} 19. Bd3 {[%clk 0:00:44]}  Bg7 {[%clk 0:00:04]} 20. Rhe1 {[%clk 0:00:33]}  Bxe5 {[%clk 0:00:04]} 21. dxe5 {[%clk 0:00:32]}  Be6 {[%clk 0:00:05]} 22. Qf2 {[%clk 0:00:25]}  b6 {[%clk 0:00:04]} 23. Qf6 {[%clk 0:00:22]}  Qxf6 {[%clk 0:00:01]} 24. exf6 {[%clk 0:00:23]}  Nd7 {[%clk 0:00:01]} 25. Bxh7 {[%clk 0:00:21]}  Rh8 {[%clk 0:00:01]} 26. Bxg5 {[%clk 0:00:20]}  Rxh7 {[%clk 0:00:01]} 27. Rxe6 {[%clk 0:00:19]}  Rxh3 {[%clk 0:00:02]} 28. f7 {[%clk 0:00:17]}  Rf8 {[%clk 0:00:02]} 29. Rf1 {[%clk 0:00:16]}  Rh7 {[%clk 0:00:02]} 30. Re7 {[%clk 0:00:15]}  Kc8 {[%clk 0:00:03]} 31. Re8+ {[%clk 0:00:14]}  Kb7 {[%clk 0:00:02]} 32. Rxf8 {[%clk 0:00:14]}  Nxf8 {[%clk 0:00:03]} 33. Be7 {[%clk 0:00:14]}  Rh8 {[%clk 0:00:04]} 34. Bxf8 {[%clk 0:00:13]}  Rxf8 {[%clk 0:00:05]} 35. g5 {[%clk 0:00:14]}  Kc7 {[%clk 0:00:05]} 36. g6 {[%clk 0:00:15]}  Kd7 {[%clk 0:00:06]} 37. g7 {[%clk 0:00:15]}  Ke7 {[%clk 0:00:07]} 38. gxf8=Q+ {[%clk 0:00:15]}  Kxf8 {[%clk 0:00:07]} 1-0


[Site "https://www.chess.com"]

[Event "Titled Tuesday Blitz May 9 Late 2023"]
[White "Colpe, Malte"]
[Black "Kavutskiy, Konstantin"]
[WhiteFideId "24623075"]
[BlackFideId "2026384"]
[WhiteElo "2289"]
[BlackElo "2323"]
[Result "0-1"]
[Round "09"]
[TimeControl "180+2"]
[Date "2023.05.09"]
[WhiteClock "0:00:00"]
[BlackClock "0:00:21"]

1. d4 {[%clk 0:02:59]}  Nf6 {[%clk 0:02:59]} 2. c4 {[%clk 0:02:59]}  g6 {[%clk 0:02:57]} 3. Nc3 {[%clk 0:02:58]}  Bg7 {[%clk 0:02:57]} 4. g3 {[%clk 0:02:58]}  d6 {[%clk 0:02:55]} 5. Bg2 {[%clk 0:02:58]}  O-O {[%clk 0:02:55]} 6. e4 {[%clk 0:02:58]}  e5 {[%clk 0:02:45]} 7. Nge2 {[%clk 0:02:57]}  Nc6 {[%clk 0:02:40]} 8. O-O {[%clk 0:02:55]}  exd4 {[%clk 0:02:37]} 9. Nxd4 {[%clk 0:02:54]}  Nxe4 {[%clk 0:02:33]} 10. Nxc6 {[%clk 0:02:50]}  Nxc3 {[%clk 0:02:32]} 11. Nxd8 {[%clk 0:02:37]}  Nxd1 {[%clk 0:02:30]} 12. Nxb7 {[%clk 0:02:32]}  Nxb2 {[%clk 0:02:29]} 13. Nxd6 {[%clk 0:02:19]}  Rb8 {[%clk 0:02:11]} 14. Nxc8 {[%clk 0:02:16]}  Rfxc8 {[%clk 0:02:12]} 15. Rb1 {[%clk 0:01:51]}  Nxc4 {[%clk 0:02:08]} 16. Bf4 {[%clk 0:01:47]}  Rxb1 {[%clk 0:01:46]} 17. Rxb1 {[%clk 0:01:45]}  Nd6 {[%clk 0:01:34]} 18. Rc1 {[%clk 0:01:32]}  Bf8 {[%clk 0:01:25]} 19. Bh3 {[%clk 0:01:29]}  f5 {[%clk 0:01:25]} 20. Bf1 {[%clk 0:01:24]}  c5 {[%clk 0:01:20]} 21. Bg2 {[%clk 0:01:19]}  Kf7 {[%clk 0:01:16]} 22. Bd5+ {[%clk 0:01:18]}  Kf6 {[%clk 0:01:13]} 23. Re1 {[%clk 0:01:15]}  Re8 {[%clk 0:01:07]} 24. Rc1 {[%clk 0:01:11]}  Ne4 {[%clk 0:01:07]} 25. f3 {[%clk 0:01:04]}  g5 {[%clk 0:00:59]} 26. Bc7 {[%clk 0:00:47]}  Nd2 {[%clk 0:00:39]} 27. Kf2 {[%clk 0:00:33]}  g4 {[%clk 0:00:35]} 28. fxg4 {[%clk 0:00:26]}  fxg4 {[%clk 0:00:34]} 29. Bf4 {[%clk 0:00:19]}  Ne4+ {[%clk 0:00:33]} 30. Kg2 {[%clk 0:00:17]}  h5 {[%clk 0:00:29]} 31. Rf1 {[%clk 0:00:15]}  Kg6 {[%clk 0:00:25]} 32. Be3 {[%clk 0:00:13]}  Nf6 {[%clk 0:00:23]} 33. Rxf6+ {[%clk 0:00:01]}  Kxf6 {[%clk 0:00:23]} 34. Bf4 {[%clk 0:00:00]}  Re2+ {[%clk 0:00:21]} 0-1


[Site "https://www.chess.com"]

[Event "Titled Tuesday Blitz May 9 Late 2023"]
[White "Rangel, Daniel"]
[Black "Bilan, Danila"]
[WhiteFideId "2124475"]
[BlackFideId "24161918"]
[WhiteElo "2256"]
[BlackElo "2182"]
[Result "1-0"]
[Round "09"]
[TimeControl "180+2"]
[Date "2023.05.09"]
[WhiteClock "0:00:19"]
[BlackClock "0:00:00"]

1. c4 {[%clk 0:02:58]}  c6 {[%clk 0:02:59]} 2. Nf3 {[%clk 0:02:58]}  d5 {[%clk 0:03:00]} 3. e3 {[%clk 0:02:58]}  Nf6 {[%clk 0:02:59]} 4. b3 {[%clk 0:02:58]}  Bf5 {[%clk 0:02:59]} 5. Bb2 {[%clk 0:02:58]}  e6 {[%clk 0:02:59]} 6. Nc3 {[%clk 0:02:57]}  Nbd7 {[%clk 0:02:59]} 7. Be2 {[%clk 0:02:54]}  h6 {[%clk 0:02:58]} 8. d4 {[%clk 0:02:53]}  Bd6 {[%clk 0:02:54]} 9. O-O {[%clk 0:02:53]}  O-O {[%clk 0:02:47]} 10. h3 {[%clk 0:02:45]}  Rc8 {[%clk 0:02:38]} 11. Bd3 {[%clk 0:02:44]}  Ne4 {[%clk 0:02:02]} 12. Qc2 {[%clk 0:02:29]}  Ndf6 {[%clk 0:01:43]} 13. Ne5 {[%clk 0:02:28]}  c5 {[%clk 0:01:32]} 14. Nxe4 {[%clk 0:02:18]}  dxe4 {[%clk 0:01:21]} 15. Be2 {[%clk 0:02:17]}  Bxe5 {[%clk 0:01:10]} 16. dxe5 {[%clk 0:02:17]}  Nd7 {[%clk 0:01:09]} 17. Rad1 {[%clk 0:02:16]}  Qe7 {[%clk 0:01:05]} 18. Rd6 {[%clk 0:02:13]}  f6 {[%clk 0:00:45]} 19. Rfd1 {[%clk 0:01:37]}  Nxe5 {[%clk 0:00:43]} 20. Bxe5 {[%clk 0:01:36]}  fxe5 {[%clk 0:00:44]} 21. Rd7 {[%clk 0:01:36]}  Qg5 {[%clk 0:00:42]} 22. Kh2 {[%clk 0:01:24]}  Bxh3 {[%clk 0:00:33]} 23. Bf1 {[%clk 0:00:53]}  Bg4 {[%clk 0:00:14]} 24. R1d2 {[%clk 0:00:52]}  Bf3 {[%clk 0:00:08]} 25. gxf3 {[%clk 0:00:36]}  Qh4+ {[%clk 0:00:08]} 26. Kg1 {[%clk 0:00:36]}  exf3 {[%clk 0:00:05]} 27. Qg6 {[%clk 0:00:33]}  Qg5+ {[%clk 0:00:01]} 28. Qxg5 {[%clk 0:00:33]}  hxg5 {[%clk 0:00:02]} 29. Bh3 {[%clk 0:00:33]}  Rf6 {[%clk 0:00:02]} 30. Rxb7 {[%clk 0:00:31]}  g4 {[%clk 0:00:02]} 31. Bf1 {[%clk 0:00:26]}  Rg6 {[%clk 0:00:01]} 32. Bd3 {[%clk 0:00:21]}  Rh6 {[%clk 0:00:00]} 33. Be4 {[%clk 0:00:19]} 1-0


[Site "https://www.chess.com"]

[Event "Titled Tuesday Blitz May 9 Late 2023"]
[White "6PackPlayer"]
[Black "Jonkman, Harmen"]
[BlackFideId "1002708"]
[WhiteElo "2278"]
[BlackElo "2368"]
[Result "1-0"]
[Round "09"]
[TimeControl "180+2"]
[Date "2023.05.09"]
[WhiteClock "0:00:37"]
[BlackClock "0:00:38"]

1. e4 {[%clk 0:03:00]}  Nf6 {[%clk 0:03:00]} 2. e5 {[%clk 0:03:01]}  Nd5 {[%clk 0:03:01]} 3. c4 {[%clk 0:03:01]}  Nb6 {[%clk 0:03:01]} 4. a4 {[%clk 0:03:02]}  d6 {[%clk 0:02:56]} 5. a5 {[%clk 0:03:02]}  N6d7 {[%clk 0:02:56]} 6. exd6 {[%clk 0:03:02]}  cxd6 {[%clk 0:02:51]} 7. d4 {[%clk 0:03:02]}  e5 {[%clk 0:02:48]} 8. d5 {[%clk 0:02:56]}  g6 {[%clk 0:02:41]} 9. h4 {[%clk 0:02:43]}  Bg7 {[%clk 0:02:32]} 10. h5 {[%clk 0:02:43]}  f5 {[%clk 0:02:32]} 11. Nf3 {[%clk 0:02:24]}  f4 {[%clk 0:02:02]} 12. hxg6 {[%clk 0:02:20]}  hxg6 {[%clk 0:02:02]} 13. Rxh8+ {[%clk 0:02:20]}  Bxh8 {[%clk 0:02:02]} 14. Bd3 {[%clk 0:02:05]}  g5 {[%clk 0:01:56]} 15. Nh4 {[%clk 0:01:52]}  Nf6 {[%clk 0:01:51]} 16. Bg6+ {[%clk 0:01:44]}  Kf8 {[%clk 0:01:47]} 17. Nf5 {[%clk 0:01:45]}  Na6 {[%clk 0:01:32]} 18. Nc3 {[%clk 0:01:36]}  Bd7 {[%clk 0:01:14]} 19. Ke2 {[%clk 0:00:55]}  Rc8 {[%clk 0:01:10]} 20. Qh1 {[%clk 0:00:55]}  Bg7 {[%clk 0:01:06]} 21. Ne4 {[%clk 0:00:42]}  Nxe4 {[%clk 0:00:51]} 22. Nxg7 {[%clk 0:00:38]}  Kxg7 {[%clk 0:00:39]} 23. Qh7+ {[%clk 0:00:37]}  Kf6 {[%clk 0:00:38]} 24. Qf7# {[%clk 0:00:37]} 1-0


[Site "https://www.chess.com"]

[Event "Titled Tuesday Blitz May 9 Late 2023"]
[White "Barria Santos, Jose Guilherme"]
[Black "cristianserban1"]
[WhiteFideId "1939300"]
[WhiteElo "2266"]
[BlackElo "2495"]
[Result "1-0"]
[Round "09"]
[TimeControl "180+2"]
[Date "2023.05.09"]
[WhiteClock "0:01:04"]
[BlackClock "0:00:03"]

1. c3 {[%clk 0:03:00]}  c5 {[%clk 0:02:55]} 2. a3 {[%clk 0:03:01]}  d5 {[%clk 0:02:54]} 3. b4 {[%clk 0:03:01]}  cxb4 {[%clk 0:02:44]} 4. axb4 {[%clk 0:03:02]}  g6 {[%clk 0:02:32]} 5. h4 {[%clk 0:03:02]}  h5 {[%clk 0:02:32]} 6. e3 {[%clk 0:03:01]}  Bg7 {[%clk 0:02:31]} 7. g3 {[%clk 0:03:02]}  Bg4 {[%clk 0:02:30]} 8. Qb3 {[%clk 0:02:57]}  e6 {[%clk 0:02:26]} 9. Bg2 {[%clk 0:02:57]}  Ne7 {[%clk 0:02:26]} 10. Nf3 {[%clk 0:02:55]}  O-O {[%clk 0:02:22]} 11. O-O {[%clk 0:02:52]}  Nd7 {[%clk 0:02:20]} 12. d4 {[%clk 0:02:47]}  Bxf3 {[%clk 0:02:20]} 13. Bxf3 {[%clk 0:02:46]}  Nb6 {[%clk 0:02:15]} 14. Nd2 {[%clk 0:02:39]}  Nf5 {[%clk 0:02:14]} 15. e4 {[%clk 0:02:38]}  dxe4 {[%clk 0:02:09]} 16. Nxe4 {[%clk 0:02:39]}  a6 {[%clk 0:01:31]} 17. Bg5 {[%clk 0:02:30]}  Qc7 {[%clk 0:01:25]} 18. Nc5 {[%clk 0:02:29]}  Ra7 {[%clk 0:01:17]} 19. Bf4 {[%clk 0:02:19]}  e5 {[%clk 0:01:17]} 20. dxe5 {[%clk 0:02:19]}  Bxe5 {[%clk 0:01:18]} 21. Bxe5 {[%clk 0:02:19]}  Qxe5 {[%clk 0:01:19]} 22. Rfe1 {[%clk 0:02:13]}  Qc7 {[%clk 0:01:15]} 23. Be4 {[%clk 0:02:09]}  Ne7 {[%clk 0:01:01]} 24. Rad1 {[%clk 0:02:09]}  a5 {[%clk 0:00:54]} 25. Bf3 {[%clk 0:01:35]}  axb4 {[%clk 0:00:51]} 26. cxb4 {[%clk 0:01:36]}  Nf5 {[%clk 0:00:46]} 27. Be4 {[%clk 0:01:31]}  Ne7 {[%clk 0:00:45]} 28. Bb1 {[%clk 0:01:27]}  Raa8 {[%clk 0:00:34]} 29. Nd7 {[%clk 0:01:28]}  Rfe8 {[%clk 0:00:27]} 30. Nf6+ {[%clk 0:01:23]}  Kg7 {[%clk 0:00:26]} 31. Nxe8+ {[%clk 0:01:24]}  Rxe8 {[%clk 0:00:26]} 32. Qb2+ {[%clk 0:01:22]}  Kh7 {[%clk 0:00:26]} 33. Qf6 {[%clk 0:01:20]}  Ned5 {[%clk 0:00:23]} 34. Qg5 {[%clk 0:01:16]}  Rxe1+ {[%clk 0:00:16]} 35. Rxe1 {[%clk 0:01:16]}  Kg7 {[%clk 0:00:16]} 36. b5 {[%clk 0:01:13]}  Qd7 {[%clk 0:00:09]} 37. Be4 {[%clk 0:01:09]}  Nf6 {[%clk 0:00:03]} 38. Qe5 {[%clk 0:01:06]}  Nc4 {[%clk 0:00:04]} 39. Qc3 {[%clk 0:01:05]}  Qd2 {[%clk 0:00:03]} 40. Qxd2 {[%clk 0:01:03]}  Nxd2 {[%clk 0:00:04]} 41. Bxb7 {[%clk 0:01:03]}  Nd7 {[%clk 0:00:03]} 42. Bc6 {[%clk 0:01:03]}  Nb8 {[%clk 0:00:03]} 43. Re8 {[%clk 0:01:02]}  Nxc6 {[%clk 0:00:03]} 44. bxc6 {[%clk 0:01:03]}  Nf3+ {[%clk 0:00:03]} 45. Kg2 {[%clk 0:01:03]}  Nd4 {[%clk 0:00:03]} 46. c7 {[%clk 0:01:04]} 1-0


[Site "https://www.chess.com"]